[Event "45th FIDE Womens Olympiad 2024"]
[Site "Budapest"]
[Date "2024.09.16"]
[Round "6.25"]
[White "Tokhirjonova, Gulrukhbegim"]
[Black "Kosteniuk, Alexandra"]
[Result "1/2-1/2"]
[ECO "C47"]
[WhiteElo "2380"]
[BlackElo "2483"]
[Annotator "TA"]
[PlyCount "77"]
[EventDate "2024.09.05"]
[EventType "team-tourn"]
[EventCountry "HUN"]
[SourceTitle "playchess.com"]
[Source "ChessBase"]
[SourceQuality "1"]
[WhiteTeam "United States of America"]
[BlackTeam "Switzerland"]
[BlackTeamCountry "SUI"]
[TimeControl "40/5400+30:1800+30"]

{[%evp 16,77,11,0,0,0,12,14,6,8,6,2,8,8,0,3,6,5,10,12,12,0,2,0,0,0,-2,-30,-26,-29,-20,-21,0,0,0,0,0,0,0,0,0,0,0,-5,0,-5,0,0,0,0,0,0,0,0,0,0,0,0,0,0,0,-3,0,-8]} 1. e4 {[%emt 0:00:09]} e5 {[%emt 0:00:05]} 2. Nf3 {[%emt 0:00:09]} Nc6 {[%emt 0:00:05]} 3. Nc3 {[%emt 0:00:10]} Nf6 {[%emt 0:00:05]} 4. d4 {[%emt 0:00:07]} exd4 {[%emt 0:00:06]} 5. Nxd4 {[%emt 0:00:06]} Bb4 {[%emt 0:00:07]} 6. Nxc6 {[%emt 0:00:10]} bxc6 {[%emt 0:00:05]} 7. Bd3 {[%emt 0:00:08][%cal Bf1d3,Bd3e4,Be4c6][%mdl 32]} d5 {[%emt 0:00:13]} 8. Bd2 {[%emt 0:00:42]} O-O {[%emt 0:01:24]} 9. O-O {[%emt 0:00:41]} Bxc3 {[%emt 0:00:20]} 10. Bxc3 {[%emt 0:00:16]} dxe4 {[%emt 0:00:06]} 11. Bxf6 {[%emt 0:04:50]} Qxf6 {[%emt 0:00:06]} 12. Bxe4 {[%emt 0:00:12]} Qxb2 {[%emt 0:00:13]} 13. Bxc6 {[%emt 0:00:11]} Rb8 {[%emt 0:00:07]} 14. Rb1 {[%emt 0:01:10]} Qxb1 {[%emt 0:00:05]} 15. Qxb1 {[%emt 0:00:07]} Rxb1 {[%emt 0:00:03]} 16. Rxb1 $11 {[%emt 0:00:11][%mdl 4096] Endgame. KRB-KRB} Rd8 {[%emt 0:00:07]} 17. Bf3 {[%emt 0:03:04]} Kf8 {[%emt 0:00:16]} 18. h3 {[%emt 0:03:07]} Ke7 {[%emt 0:10:53]} 19. Rb4 {[%emt 0:01:21]} Rd6 {[%emt 0:14:04]} 20. Rc4 {[%emt 0:09:01]} Kd8 {[%emt 0:00:37]} 21. a4 {[%emt 0:02:42]} Be6 {[%emt 0:01:37]} 22. Rc5 {[%emt 0:01:30]} Rd4 {[%emt 0:00:47]} 23. Ra5 {[%emt 0:03:45] The position is equal.} Bd7 {[%emt 0:00:27]} 24. Rxa7 {[%emt 0:00:17]} Rxa4 {[%emt 0:00:03]} 25. Rxa4 {[%emt 0:01:06]} Bxa4 {[%emt 0:00:01] KB-KB} 26. Be4 {[%emt 0:00:18]} Ke7 {[%emt 0:01:31]} 27. Kf1 {[%emt 0:00:10]} Kd6 {[%emt 0:01:48]} 28. Ke2 {[%emt 0:05:27]} h6 {[%emt 0:05:05]} 29. Kd3 {[%emt 0:00:00]} Kc5 {[%emt 0:01:21]} 30. Kc3 {[%emt 0:00:00]} g5 {[%emt 0:01:25]} 31. g3 {[%emt 0:00:00]} Bd7 {[%emt 0:00:18]} 32. h4 {[%emt 0:00:00]} gxh4 {[%emt 0:04:43]} 33. gxh4 {[%emt 0:00:00]} f5 {[%emt 0:00:25]} 34. Bg2 {[%emt 0:00:38]} f4 {[%emt 0:00:07]} 35. Be4 {[%emt 0:01:37]} Bb5 {[%emt 0:00:21]} 36. Bf3 {[%emt 0:00:33]} Bc4 {[%emt 0:00:18]} 37. Be4 {[%emt 0:00:54]} Bb5 {[%emt 0:00:24]} 38. Bf3 {[%emt 0:00:06]} Bc4 {[%emt 0:00:09]} 39. Be4 {[%emt 0:00:04] A rather calm draw.   Weighted Error Value: White=0.02 (flawless) /Black=0.02 (flawless) .  Inaccurate:     	White=1     	---        OK:         	White=18    	Black=8      Best:        	White=1     	---} 1/2-1/2

[Event "45th FIDE Womens Olympiad 2024"]
[Site "Budapest"]
[Date "2024.09.16"]
[Round "6.26"]
[White "Georgescu, Lena"]
[Black "Yip, Carissa"]
[Result "0-1"]
[ECO "B56"]
[WhiteElo "2266"]
[BlackElo "2386"]
[Annotator "TA"]
[PlyCount "100"]
[EventDate "2024.09.05"]
[EventType "team-tourn"]
[EventCountry "HUN"]
[SourceTitle "playchess.com"]
[Source "ChessBase"]
[SourceQuality "1"]
[WhiteTeam "Switzerland"]
[BlackTeam "United States of America"]
[WhiteTeamCountry "SUI"]
[TimeControl "40/5400+30:1800+30"]

{[%evp 9,100,20,45,35,30,42,37,28,41,25,30,33,67,61,60,21,34,22,4,14,40,0,20,7,66,31,44,32,77,52,35,31,41,33,44,27,80,88,99,27,18,0,0,0,34,0,0,0,0,0,0,0,0,-32,-29,-40,-20,-46,0,-148,-85,-250,-249,-346,-346,-781,-377,-617,-631,-704,-695,-693,-708,-707,-697,-694,-680,-731,-736,-1149,-1106,-1109,-1130,-2027,-1610,-1939,-1929,-29971,-5739,-29992,-29993,-29993,-29991]} 1. e4 {[%emt 0:00:05]} c5 {[%emt 0:00:04]} 2. Nf3 {[%emt 0:00:15]} d6 {[%emt 0:00:04]} 3. d4 {[%emt 0:00:12]} cxd4 {[%emt 0:00:05]} 4. Nxd4 {[%emt 0:00:06]} Nf6 {[%emt 0:00:04]} 5. Nc3 {[%emt 0:00:19]} h6 {[%emt 0:00:04]} 6. Bc4 {[%emt 0:05:26]} e6 {[%emt 0:01:33]} 7. Bb3 {[%emt 0:01:02]} a6 {[%emt 0:00:30]} 8. Be3 {[%emt 0:04:52] White is slightly better.} Qc7 {[%emt 0:00:20]} 9. Qe2 {[%emt 0:03:01]} b5 {[%emt 0:01:30]} 10. O-O-O {[%emt 0:18:08]} Bb7 {[%emt 0:14:52][%cal Ob8d7]} 11. f3 {[%emt 0:08:44]} Nbd7 {[%emt 0:00:23]} 12. g4 {[%emt 0:05:58]} Nc5 {[%emt 0:00:49]} 13. h4 {[%emt 0:02:16][%cal Bh2h4,Bh4h5][%mdl 32]} Nxb3+ {[%emt 0:00:26]} 14. axb3 {[%emt 0:02:28]} (14. cxb3 $2 {is the wrong capture.} b4 15. Bd2 (15. g5 $2 Nh5 $19) 15... d5 $19 (15... bxc3 $2 16. Bxc3 Be7 17. Kb1 $19)) 14... g6 {[%emt 0:11:21][%cal Bg7g6,Bg6g5][%mdl 32]} 15. Qd2 {[%emt 0:06:13]} (15. b4 $5) 15... Nd7 {[%emt 0:06:22]} 16. Kb1 {[%emt 0:14:47]} Nc5 {[%emt 0:03:33]} (16... Rc8 $11) 17. h5 {[%emt 0:01:19] Black must now prevent hxg6.} g5 {[%emt 0:01:32]} 18. Rhe1 {[%emt 0:02:19][%cal Od4f5]} Be7 {[%emt 0:02:23]} 19. b4 {[%emt 0:06:49]} (19. f4 $5) 19... Nd7 {[%emt 0:00:15][%cal Bc5d7,Bd7e5,Be5c4][%mdl 32]} 20. Nb3 {[%emt 0:01:28]} Ne5 {[%emt 0:00:59]} 21. Qf2 {[%emt 0:01:29]} Nc4 {[%emt 0:03:14]} 22. Bd4 {[%emt 0:02:23]} Rg8 {[%emt 0:01:00] [#]} (22... O-O $11) 23. Na5 $1 {[%emt 0:02:07]} Rc8 {[%emt 0:03:14]} (23... Bc6 24. b3) 24. Nxb7 {[%emt 0:02:39]} (24. Nxc4 $16 Qxc4 25. Bb6) 24... Qxb7 $11 {[%emt 0:00:01]} 25. Na2 {[%emt 0:01:47]} a5 {[%emt 0:00:38]} 26. bxa5 {[%emt 0:00:57]} Nxa5 {[%emt 0:01:23]} 27. b3 {[%emt 0:00:43]} Nc6 {[%emt 0:03:39]} 28. Bb2 {[%emt 0:00:25]} Ra8 {[%emt 0:00:56]} 29. Qd2 {[%emt 0:01:19]} b4 {[%emt 0:04:32]} 30. Nc1 {[%emt 0:00:48]} Qa6 {[%emt 0:04:18]} 31. c4 {[%emt 0:02:53]} bxc3 {[%emt 0:01:54]} 32. Qxc3 {[%emt 0:00:29]} Kd7 {[%emt 0:00:49]} 33. Re3 {[%emt 0:01:38]} Rgc8 {[%emt 0:02:18]} (33... e5 $15 {deserves consideration.}) 34. Red3 {[%emt 0:00:37] [#]} (34. Qg7 $1 $11 {keeps the balance.}) 34... Na7 $1 $17 {[%emt 0:02:30] Chess con chili.} 35. Qd2 {[%emt 0:01:02] Now White is beyond hope.} (35. Qg7 $17) 35... Nb5 $19 {[%emt 0:01:09]} 36. b4 {[%emt 0:00:22]} Ke8 {[%emt 0:01:19]} 37. Qe3 $2 {[%emt 0:00:55]} (37. Re1) 37... Bd8 {[%emt 0:10:32]} (37... Bf6 $142 {[%cal Oa6a1] ( -> ...Qa1+!)} 38. e5 Bxe5 39. Bxe5 dxe5 40. Qxe5 Na3+ 41. Rxa3 Qxa3 42. Qh8+ Ke7) 38. Qd2 $2 {[%emt 0:00:26]} (38. R1d2 Bb6 39. Qe2) 38... Qa4 {[%emt 0:03:02]} 39. Rf1 {[%emt 0:00:38]} Rc4 {[%emt 0:00:48]} 40. Qd1 {[%emt 0:00:32]} Qxb4 {[%emt 0:02:23]} 41. Qb3 {[%emt 0:06:48] Prevents Rc3} Qc5 {[%emt 0:00:38]} 42. Na2 {[%emt 0:04:08] Wards off Rb4} Rb8 {[%emt 0:01:40]} 43. Ka1 {[%emt 0:02:07]} Rb6 {[%emt 0:04:42] aiming for ...Nd4.} 44. Qd1 {[%emt 0:03:44]} Ra6 {[%emt 0:01:47]} 45. Kb1 {[%emt 0:05:47]} Rca4 {[%emt 0:00:46]} 46. Nc1 {[%emt 0:00:41]} Na3+ {[%emt 0:00:50]} 47. Rxa3 {[%emt 0:01:05]} Rxa3 {[%emt 0:00:06]} 48. Re1 {[%emt 0:02:05]} Qb4 {[%emt 0:01:21]} 49. Re2 {[%emt 0:00:40]} Ra1+ {[%emt 0:01:18]} 50. Kc2 {[%emt 0:00:06]} Qa4+ {[%emt 0:00:49] Weighted Error Value: White=0.89/Black=0.18 (very precise) .  Loses game:     	White=1     	---        Mistake:       	White=4     	Black=4      Inaccurate:     	White=7     	Black=4      OK:         	White=4     	Black=15     Best:        	---       	Black=2      Strong:       	---       	Black=1} 0-1

[Event "45th FIDE Womens Olympiad 2024"]
[Site "Budapest"]
[Date "2024.09.16"]
[Round "6.27"]
[White "Lee, Alice"]
[Black "Hryzlova, Sofiia"]
[Result "1-0"]
[ECO "D37"]
[WhiteElo "2384"]
[BlackElo "2188"]
[Annotator "TA"]
[PlyCount "111"]
[EventDate "2024.09.05"]
[EventType "team-tourn"]
[EventCountry "HUN"]
[SourceTitle "playchess.com"]
[Source "ChessBase"]
[SourceQuality "1"]
[WhiteTeam "United States of America"]
[BlackTeam "Switzerland"]
[BlackTeamCountry "SUI"]
[TimeControl "40/5400+30:1800+30"]

{[%evp 12,111,32,28,24,19,23,20,35,29,25,30,28,27,27,22,24,31,19,17,35,3,12,10,14,16,7,0,9,0,21,0,7,0,0,0,11,-4,-16,-12,-2,-19,0,-11,0,0,0,0,0,0,0,0,0,0,0,0,0,0,0,0,0,0,0,0,0,0,0,0,0,0,0,0,0,0,0,0,0,3,2,9,153,37,29950,29940,1874,29953,29957,29957,29957,29959,29959,29961,29959,29962,29963,29964,29963,29965,29964,29965,29963,29964]} 1. d4 {[%emt 0:00:09]} Nf6 {[%emt 0:00:10]} 2. c4 {[%emt 0:00:19]} e6 {[%emt 0:00:07]} 3. Nf3 {[%emt 0:00:42]} d5 {[%emt 0:00:11]} 4. Nc3 {[%emt 0:00:57]} a6 {[%emt 0:00:11]} 5. cxd5 {[%emt 0:00:38]} exd5 {[%emt 0:00:06]} 6. Bg5 {[%emt 0:00:49] D37: Queen's Gambit Declined: 5 Bf4.} Be6 {[%emt 0:00:14]} 7. e3 {[%emt 0:00:30]} Nbd7 {[%emt 0:00:14]} 8. Bd3 {[%emt 0:00:35]} Bd6 {[%emt 0:00:18]} 9. O-O {[%emt 0:00:33]} c6 {[%emt 0:00:11]} 10. Bf4 {[%emt 0:01:01]} Qc7 {[%emt 0:00:28]} 11. Qd2 {[%emt 0:01:05] is cutting edge theory.} O-O {[%emt 0:00:35]} 12. h3 {[%emt 0:00:42]} Nb6 {[%emt 0:09:11]} 13. b3 {[%emt 0:04:47]} g6 $146 {[%emt 0:06:26]} ({Predecessor:} 13... Rae8 14. a4 Nc8 15. Be5 Kh8 16. Qc2 Bxe5 17. Nxe5 Nd6 18. Rfc1 a5 19. Nb5 Qe7 20. Nxd6 Qxd6 {½-½ Navara,D (2699)-Mikhalevski,V (2559) EU-chT 23rd Terme Catez 2021 (5.1)}) 14. Rac1 {[%emt 0:03:25]} Nc8 {[%emt 0:06:23]} 15. Ne5 {[%emt 0:08:43]} Nh5 {[%emt 0:22:36]} 16. Bh2 {[%emt 0:03:03]} (16. Bh6 {looks sharper.} Ng7 17. e4 Nb6 18. Ng4) 16... f6 {[%emt 0:02:48]} 17. Nf3 {[%emt 0:00:22]} Bxh2+ {[%emt 0:02:22]} 18. Nxh2 {[%emt 0:01:28]} Nd6 {[%emt 0:00:17]} 19. Rfd1 {[%emt 0:04:05]} f5 {[%emt 0:02:04]} 20. Nf3 {[%emt 0:00:54]} Ne4 {[%emt 0:02:56]} 21. Qc2 {[%emt 0:05:05]} Qg7 {[%emt 0:03:49]} 22. Ne5 {[%emt 0:02:04]} g5 {[%emt 0:01:59]} 23. Na4 {[%emt 0:08:12]} Rae8 {[%emt 0:03:06]} 24. b4 {[%emt 0:09:19]} Kh8 {[%emt 0:04:38]} 25. Nc5 {[%emt 0:01:42]} Bc8 {[%emt 0:02:18]} 26. a4 {[%emt 0:03:28]} Nxc5 {[%emt 0:03:32]} 27. bxc5 {[%emt 0:03:40]} g4 {[%emt 0:00:43]} 28. hxg4 {[%emt 0:03:07]} fxg4 {[%emt 0:00:06]} 29. g3 {[%emt 0:06:29]} (29. Rf1 {simplifies} Qh6 30. Rce1 Rf6 31. Qd1) 29... Qh6 {[%emt 0:04:08]} 30. Kg2 {[%emt 0:11:06]} Nxg3 {[%emt 0:04:37]} 31. Rh1 $1 {[%emt 0:00:01]} (31. fxg3 $2 Qh3+ 32. Kg1 Qxg3+ 33. Kh1 (33. Qg2 $2 Qxe3+ 34. Kh1 Rxe5 $19) 33... Rxe5 $19 (33... Qxe3 $2 34. Qh2 $18) (33... Rf2 $2 34. Qxf2 Qxf2 35. Rc2 $19)) 31... Nxh1 {[%emt 0:00:27]} 32. Rxh1 {[%emt 0:00:02]} Qf6 {[%emt 0:00:21]} 33. Ng6+ {[%emt 0:08:52]} (33. Bxh7 $5 Kg7 $8 34. Rh5 $11) 33... Kg8 $1 {[%emt 0:00:34]} 34. Nxf8 {[%emt 0:00:38]} Rxf8 {[%emt 0:01:49]} 35. Bxh7+ {[%emt 0:00:40]} (35. Rxh7 $2 {is the wrong capture.} Qf3+ 36. Kg1 g3 37. fxg3 Bf5 38. Bxf5 (38. Rxb7 {is a self mate.} Bxd3 39. Qg2 Qxe3+ 40. Kh2 Be4 41. Rb2 Bxg2 42. Kxg2 Kg7 43. Rb7+ Kg6) 38... Rxf5 $19) 35... Kg7 {[%emt 0:00:09]} 36. Qe2 {[%emt 0:02:37]} Qg5 {[%emt 0:14:05]} 37. Bc2 {[%emt 0:01:31]} Rf3 {[%emt 0:02:12]} 38. Qd3 {[%emt 0:02:11]} Rh3 {[%emt 0:01:11]} 39. Qf1 {[%emt 0:01:06]} Rf3 {[%emt 0:01:35]} 40. Rh7+ {[%emt 0:01:43]} Kf6 {[%emt 0:00:31]} 41. Qh1 {[%emt 0:03:02]} (41. Qb1 $5 g3 $8 (41... Rh3 $2 42. Qb6 $18) 42. Kxf3 $11) 41... Rh3 {[%emt 0:08:26]} 42. Rxh3 {[%emt 0:00:28]} gxh3+ {[%emt 0:00:06]} 43. Kh2 {[%emt 0:00:05]} a5 {[%emt 0:15:03]} 44. Qf3+ {[%emt 0:04:25]} Ke7 {[%emt 0:00:30]} 45. Qg3 {[%emt 0:13:42]} Qf6 {[%emt 0:00:22]} (45... Qxg3+ $11 46. Kxg3 Kd8) 46. Bd3 {[%emt 0:01:42]} ({Better is} 46. f3 $16) 46... Bg4 $2 {[%emt 0:04:45][%mdl 8192]} (46... Qe6 $14) 47. Qxg4 {[%emt 0:03:58]} Qxf2+ {[%emt 0:00:06]} 48. Kh1 {[%emt 0:00:17]} Qxe3 {[%emt 0:01:14]} 49. Qe2 {[%emt 0:02:57]} Qxe2 {[%emt 0:01:01]} 50. Bxe2 {[%emt 0:00:03]} Kf6 {[%emt 0:00:35] [#]} 51. Bg4 $1 {[%emt 0:00:21]} Kg5 {[%emt 0:00:04]} 52. Bxh3 {[%emt 0:00:24]} Kf4 {[%emt 0:00:09] [#]} 53. Bc8 $1 {[%emt 0:00:09]} Ke4 {[%emt 0:00:05]} 54. Bxb7 {[%emt 0:00:02]} Kxd4 {[%emt 0:00:05]} 55. Bxc6 {[%emt 0:00:03]} Kxc5 {[%emt 0:00:07]} 56. Bb5 {[%emt 0:00:08]} 1-0

[Event "45th FIDE Womens Olympiad 2024"]
[Site "Budapest"]
[Date "2024.09.16"]
[Round "6.28"]
[White "Manko, Mariia"]
[Black "Zatonskih, Anna"]
[Result "1-0"]
[ECO "D11"]
[WhiteElo "2159"]
[BlackElo "2320"]
[Annotator "TA"]
[PlyCount "73"]
[EventDate "2024.09.05"]
[EventType "team-tourn"]
[EventCountry "HUN"]
[SourceTitle "playchess.com"]
[Source "ChessBase"]
[SourceQuality "1"]
[WhiteTeam "Switzerland"]
[BlackTeam "United States of America"]
[WhiteTeamCountry "SUI"]
[TimeControl "40/5400+30:1800+30"]

{[%evp 9,73,6,13,8,38,49,37,49,48,47,43,47,51,34,44,32,62,62,55,61,85,70,79,67,108,116,150,122,125,115,120,131,122,138,236,247,358,390,490,431,522,480,1091,1086,1065,637,626,613,607,632,618,580,571,571,945,1010,996,1004,1160,1136,1131,1243,1315,1164,2306,2052]} 1. d4 {[%emt 0:00:02]} d5 {[%emt 0:00:09]} 2. c4 {[%emt 0:00:06]} c6 {[%emt 0:00:08]} 3. Nf3 {[%emt 0:00:08]} Nf6 {[%emt 0:00:07]} 4. g3 {[%emt 0:00:10]} Bf5 {[%emt 0:00:53]} 5. Nc3 {[%emt 0:00:12]} e6 {[%emt 0:00:21]} 6. Nh4 {[%emt 0:00:07]} Be4 {[%emt 0:00:23]} 7. f3 {[%emt 0:00:09]} Bg6 {[%emt 0:00:05]} 8. Qb3 {[%emt 0:00:16] White is slightly better.} Qd7 {[%emt 0:00:19]} 9. Nxg6 {[%emt 0:06:51]} hxg6 {[%emt 0:00:12]} 10. Be3 {[%emt 0:00:07]} Be7 {[%emt 0:11:32]} 11. Bg2 {[%emt 0:00:51]} Qc7 {[%emt 0:16:12]} 12. O-O {[%emt 0:06:06]} Nbd7 {[%emt 0:06:46]} 13. cxd5 {[%emt 0:05:35]} exd5 {[%emt 0:03:36]} 14. Bf2 {[%emt 0:04:38]} O-O {[%emt 0:09:39] White now steadily converts the win.} 15. Kh1 {[%emt 0:01:06]} Nb6 {[%emt 0:24:47]} 16. e4 {[%emt 0:04:25]} dxe4 {[%emt 0:00:40]} 17. fxe4 {[%emt 0:00:22][%cal Bf3e4,Be4e5][%mdl 32]} Rad8 {[%emt 0:06:48]} 18. a4 {[%emt 0:07:16]} a5 {[%emt 0:00:30]} 19. Rac1 {[%emt 0:00:30]} Ng4 {[%emt 0:02:37]} 20. Bg1 {[%emt 0:19:22]} Bg5 {[%emt 0:00:29]} 21. Rce1 {[%emt 0:01:45]} Na8 {[%emt 0:01:57]} (21... Kh7 $16 22. Re2 Rde8) 22. e5 $18 {[%emt 0:04:01]} Nh6 {[%emt 0:02:37]} (22... Kh7 {might work better.} 23. Rf3 Nb6) 23. d5 {[%emt 0:09:49] Hoping for d6.} cxd5 {[%emt 0:01:06]} 24. Nxd5 {[%emt 0:00:15] White is clearly winning.} Qd7 {[%emt 0:00:46]} 25. h4 {[%emt 0:02:20]} Be7 {[%emt 0:01:25] [#]} (25... Qg4 $142 26. Qd1 (26. hxg5 $2 {loses.} Qh5+ 27. Bh2 Ng4 $19) 26... Qd7 27. hxg5 Nf5) 26. e6 $1 {[%emt 0:00:34][%mdl 512]} fxe6 {[%emt 0:00:58] [#]} 27. Rxe6 $3 {[%emt 0:08:32][%mdl 512]} Rxf1 {[%emt 0:03:05]} 28. Nxe7+ {[%emt 0:01:18]} Kh7 {[%emt 0:00:05]} 29. Bxf1 {[%emt 0:00:47]} Nc7 {[%emt 0:00:28]} 30. Re2 {[%emt 0:05:29]} Re8 {[%emt 0:00:35]} 31. Bc5 {[%emt 0:00:51]} Nf5 {[%emt 0:03:02][%cal Rf5e7]} 32. Bh3 {[%emt 0:00:44]} Rxe7 {[%emt 0:02:54]} 33. Bxe7 {[%emt 0:00:44]} Qc6+ {[%emt 0:00:22]} 34. Bg2 {[%emt 0:01:14]} Qc1+ {[%emt 0:01:00]} 35. Kh2 {[%emt 0:00:03]} Nd4 {[%emt 0:00:27]} 36. Qe3 {[%emt 0:00:33]} Nxe2 {[%emt 0:00:05]} 37. Qxe2 {[%emt 0:00:04] Weighted Error Value: White=0.23 (precise) /Black=0.30.  Mistake:       	---       	Black=3      Inaccurate:     	---       	Black=4      OK:         	White=9     	Black=8      Best:        	White=1     	Black=1      Brilliant:      	White=1     	---} 1-0

[Event "45th FIDE Womens Olympiad 2024"]
[Site "Budapest"]
[Date "2024.09.16"]
[Round "6.29"]
[White "Wagner, Dinara"]
[Black "Brunello, Marina"]
[Result "1/2-1/2"]
[ECO "D37"]
[WhiteElo "2452"]
[BlackElo "2348"]
[Annotator "TA"]
[PlyCount "64"]
[EventDate "2024.09.05"]
[EventType "team-tourn"]
[EventCountry "HUN"]
[SourceTitle "playchess.com"]
[Source "ChessBase"]
[SourceQuality "1"]
[WhiteTeam "Germany"]
[BlackTeam "Italy"]
[WhiteTeamCountry "GER"]
[BlackTeamCountry "ITA"]
[TimeControl "40/5400+30:1800+30"]

{[%evp 9,64,36,36,34,39,30,34,21,35,6,17,18,12,0,41,34,65,48,80,56,66,68,76,51,97,85,85,52,75,53,68,39,64,60,50,43,45,17,10,19,8,-31,31,32,41,0,0,-36,-38,-49,14,-7,-6,0,24,29,24]} 1. d4 {[%emt 0:00:04]} d5 {[%emt 0:00:08]} 2. c4 {[%emt 0:00:05]} e6 {[%emt 0:00:06]} 3. Nf3 {[%emt 0:01:33]} h6 {[%emt 0:00:06]} 4. Nc3 {[%emt 0:01:30]} Nf6 {[%emt 0:00:09]} 5. Bf4 {[%emt 0:00:04]} Bd6 {[%emt 0:00:23]} 6. Bxd6 {[%emt 0:14:50]} Qxd6 {[%emt 0:00:06]} 7. e3 {[%emt 0:00:29]} O-O {[%emt 0:00:08]} 8. Rc1 {[%emt 0:00:15] White is slightly better.} Qe7 {[%emt 0:00:09]} 9. Qb3 {[%emt 0:14:52][%cal Rc4d5]} Rd8 {[%emt 0:16:19]} 10. Bd3 {[%emt 0:05:35]} dxc4 {[%emt 0:03:58]} 11. Qxc4 {[%emt 0:01:42]} Na6 {[%emt 0:03:33]} 12. Ne4 {[%emt 0:09:04]} Nd5 {[%emt 0:09:58]} 13. a3 {[%emt 0:02:11]} Nb8 {[%emt 0:05:12]} 14. O-O {[%emt 0:07:07]} b6 {[%emt 0:01:03]} 15. Qc2 {[%emt 0:02:14]} Bb7 {[%emt 0:01:09]} 16. Ne5 {[%emt 0:02:05]} Rc8 {[%emt 0:02:50]} (16... Nd7 $14) 17. Qa4 {[%emt 0:04:38]} f6 {[%emt 0:08:52]} 18. Nf3 {[%emt 0:04:41] White is much more active.} (18. Ng6 {with more complications.} Qd7 19. Qxd7 Nxd7 20. Bb5) 18... c6 {[%emt 0:02:01][%cal Bc7c6,Bc6c5,Bc5c4][%mdl 32]} 19. Bb1 {[%emt 0:10:47]} Nd7 {[%emt 0:00:41]} 20. Rfe1 {[%emt 0:06:34]} a5 {[%emt 0:04:31]} 21. Ng3 {[%emt 0:04:26]} (21. Qb3 $5) 21... c5 {[%emt 0:03:56]} 22. e4 {[%emt 0:01:39]} Nf4 {[%emt 0:00:17] [#]} 23. d5 $1 {[%emt 0:00:01]} Ne5 {[%emt 0:00:47]} 24. Nxe5 {[%emt 0:02:04]} fxe5 {[%emt 0:00:04]} 25. Qb3 {[%emt 0:01:40]} Qc7 {[%emt 0:04:07]} (25... exd5 $15 26. Qxb6 d4) 26. dxe6 {[%emt 0:01:13] Hoping for e7+.} c4 {[%emt 0:00:07]} 27. Qa4 {[%emt 0:01:11]} (27. Qf3 {seems wilder.} Qe7 28. b3 b5 29. bxc4 bxc4 30. Ba2) 27... Nxe6 {[%emt 0:05:25]} (27... Kh7 {feels hotter.} 28. Qd7 Qxd7 29. exd7 Rc7) 28. Ba2 {[%emt 0:00:05][%cal Rc1c4]} Ba6 {[%emt 0:00:15]} 29. Qd1 {[%emt 0:01:29]} Nd4 {[%emt 0:02:22]} (29... Nf4 $15 30. Qg4 Kh8) 30. Qh5 {[%emt 0:00:47]} b5 {[%emt 0:04:23]} 31. Nf5 {[%emt 0:00:03]} Nxf5 {[%emt 0:01:36]} 32. exf5 {[%emt 0:00:02]} Rf8 {[%emt 0:00:21] Weighted Error Value: White=0.16 (very precise) /Black=0.16 (very precise) .  Mistake:       	---       	Black=3      Inaccurate:     	White=7     	Black=2      OK:         	White=6     	Black=14} 1/2-1/2

[Event "45th FIDE Womens Olympiad 2024"]
[Site "Budapest"]
[Date "2024.09.16"]
[Round "6.29"]
[White "Nihaya, Ahmed"]
[Black "Kovacova, Zuzana"]
[Result "1/2-1/2"]
[ECO "C62"]
[WhiteElo "1589"]
[BlackElo "2020"]
[PlyCount "114"]
[EventDate "2024.09.05"]
[EventType "team-tourn"]
[EventCountry "HUN"]
[WhiteTeam "Maldives"]
[BlackTeam "Bermuda"]
[WhiteTeamCountry "MDV"]
[BlackTeamCountry "BER"]
[TimeControl "40/5400+30:1800+30"]

1. e4 e5 2. Nf3 Nc6 3. Nc3 d6 4. Bb5 Bd7 5. d4 exd4 6. Nxd4 g6 7. Be3 Bg7 8. Qd3 Nf6 9. f3 O-O 10. Nxc6 bxc6 11. Bc4 Re8 12. O-O-O Qe7 13. Bb3 a5 14. g4 c5 15. Bg5 Bc6 16. Bd5 Qd7 17. Bxf6 Bxf6 18. h4 Rab8 19. b3 Bg7 20. g5 Rb4 21. Bxc6 Qxc6 22. Nd5 Rd4 23. Qf1 a4 24. Rxd4 cxd4 25. Qc4 Qxc4 26. bxc4 c6 27. Nb4 Rc8 28. Kd2 Kf8 29. h5 Ke7 30. hxg6 hxg6 31. f4 Ke6 32. Rh7 Bf8 33. Rh8 d5 34. Kd3 dxe4+ 35. Kxe4 Kd7 36. Nd3 Ke6 37. Nc5+ Ke7 38. f5 gxf5+ 39. Kxf5 Rb8 40. Nd3 Rb1 41. Rh7 Rf1+ 42. Ke4 Ke8 43. Kxd4 Rg1 44. Ne5 Rxg5 45. Nxc6 Bg7+ 46. Ke4 Bb2 47. Nb4 Rc5 48. Kd3 Rf5 49. Rh3 Kd7 50. Nd5 Kd6 51. Rh6+ f6 52. c3 Ke5 53. Rh1 Rf3+ 54. Kc2 Rf2+ 55. Kd3 Rf3+ 56. Kc2 Rf2+ 57. Kd3 Rf3+ 1/2-1/2